[Event "XLIV Barbera del Valles-A 2022"]
[Site "Barbera del Valles"]
[Date "2022.07.05"]
[Round "2.4"]
[White "Martin Capitan, Feliciano"]
[Black "Sanchez, Sebastian Felipe"]
[Result "0-1"]
[ECO "A36"]
[WhiteElo "2099"]
[BlackElo "2440"]
[Annotator "TA"]
[PlyCount "52"]
[EventDate "2022.07.04"]
[EventType "swiss"]
[EventCountry "ESP"]
[SourceTitle "playchess.com"]
[Source "ChessBase"]
[SourceQuality "1"]
[TimeControl "5400+30"]

{[%evp 11,52,-6,0,0,-6,-13,-8,-14,-13,-9,-8,-12,0,-8,-6,-14,41,68,76,72,79,49,73,37,44,0,51,-10,-10,-19,-15,-158,-167,-166,-175,-171,-157,-771,-772,-1104,-1080,-917,-941]} 1. e4 {[%emt 0:02:01]} c5 {[%emt 0:00:08]} 2. c4 {[%emt 0:00:12]} Nc6 {[%emt 0:01:56]} 3. Nc3 {[%emt 0:03:22]} g6 {[%emt 0:00:05]} 4. g3 {[%emt 0:00:25]} Bg7 {[%emt 0:00:05]} 5. Bg2 {[%emt 0:00:06]} a6 {[%emt 0:00:15]} 6. Nge2 {[%emt 0:02:26]} b5 {[%emt 0:00:18]} 7. d3 {[%emt 0:01:43] A36: Symmetrical English vs ...g6: 4 Bg2 Bg7.} Rb8 {[%emt 0:00:16]} 8. O-O {[%emt 0:05:00]} d6 {[%emt 0:00:17]} 9. Rb1 {[%emt 0:04:51] The position is equal.} b4 {[%emt 0:02:55]} (9... Nf6 {feels hotter.} 10. Nd5 Bg4 11. b3 Nxd5 12. exd5 Bxe2 13. Qxe2 Nd4) 10. Nd5 {[%emt 0:03:26][%cal Bc3d5,Bd5e3,Be3c2][%mdl 32]} e6 {[%emt 0:00:07]} 11. Ne3 {[%emt 0:01:19] [#]} h5 $146 {[%emt 0:05:39]} ({Predecessor:} 11... Qa5 12. a3 bxa3 13. Bd2 Qc7 14. bxa3 Nge7 15. Rxb8 Qxb8 16. f4 Nd4 17. Nxd4 Bxd4 18. Qc2 Nc6 19. Rb1 {½-½ (19) Malinowski,D (2326)-Ilzig,G (2308) ICCF email 2019}) 12. f4 {[%emt 0:03:42]} Nge7 {[%emt 0:01:28]} 13. b3 {[%emt 0:03:10]} f5 {[%emt 0:11:53]} (13... h4 $11) 14. Bb2 $14 {[%emt 0:05:56]} Nd4 {[%emt 0:00:39]} 15. Nxd4 {[%emt 0:08:50]} cxd4 {[%emt 0:00:53]} 16. Nc2 {[%emt 0:00:09]} e5 {[%emt 0:12:03]} 17. Qd2 {[%emt 0:01:52]} a5 {[%emt 0:03:13]} 18. Rbe1 {[%emt 0:00:34]} h4 {[%emt 0:01:55]} (18... O-O $11) 19. fxe5 {[%emt 0:18:04]} ({White should play} 19. exf5 $14 gxf5 20. g4) 19... dxe5 $11 {[%emt 0:00:17]} 20. exf5 {[%emt 0:00:40]} gxf5 {[%emt 0:09:26] Strongly threatening ...hxg3.} 21. Qg5 {[%emt 0:03:27] [#]} (21. g4 $11 {keeps the balance.}) 21... Kf7 $1 $17 {[%emt 0:03:56]} 22. g4 {[%emt 0:05:45]} Bf6 {[%emt 0:02:42] Chess con chili.} 23. Qd2 {[%emt 0:03:02]} h3 {[%emt 0:00:08]} 24. g5 $2 {[%emt 0:07:55]} (24. Bf3 $17) 24... hxg2 $19 {[%emt 0:00:44] Black is clearly winning.} 25. gxf6 {[%emt 0:00:39]} gxf1=Q+ {[%emt 0:00:10]} 26. Kxf1 {[%emt 0:00:08]} Ng6 {[%emt 0:00:47] Weighted Error Value: White=0.73/Black=0.13 (very precise)} 0-1

[Event "XLIV Barbera del Valles-A 2022"]
[Site "Barbera del Valles"]
[Date "2022.07.05"]
[Round "2.6"]
[White "Rios, Cristhian Camilo"]
[Black "Lorscheid, Gerhard"]
[Result "1-0"]
[ECO "E61"]
[WhiteElo "2399"]
[BlackElo "2126"]
[Annotator "TA"]
[PlyCount "85"]
[EventDate "2022.07.04"]
[EventType "swiss"]
[EventCountry "ESP"]
[SourceTitle "playchess.com"]
[Source "ChessBase"]
[SourceQuality "1"]
[TimeControl "5400+30"]

{[%evp 9,85,27,32,27,27,17,20,14,16,16,17,4,24,5,37,-9,0,0,1,0,13,0,1,0,20,24,101,-17,53,22,36,27,35,14,19,-7,-4,-17,9,0,0,0,6,0,0,0,0,-36,3,8,6,5,12,16,42,34,99,91,79,78,79,74,149,142,150,137,154,152,150,101,85,117,215,168,710,687,1933,1667]} 1. d4 {[%emt 1:31:00]} d6 {[%emt 1:31:00]} 2. Nf3 {[%emt 0:00:30]} Nf6 {[%emt 0:00:30]} 3. c4 {[%emt 0:00:30]} g6 {[%emt 0:00:30]} 4. Nc3 {[%emt 0:00:30]} Bf5 {[%emt 0:00:30]} 5. g3 {[%emt 0:00:30]} c6 {[%emt 0:00:30]} 6. Bg2 {[%emt 0:00:30] E61: King's Indian: Early deviations for White, including Smyslov System.} Bg7 {[%emt 0:00:30]} 7. Nh4 {[%emt 0:00:30]} Be6 {[%emt 0:00:30]} 8. b3 {[%emt 0:00:30] [#] The position is equal.} d5 $146 {[%emt 0:00:30]} ({Predecessor:} 8... Qc8 9. O-O Bh3 10. e4 O-O 11. f3 c5 12. e5 dxe5 13. dxe5 Bxg2 14. Nxg2 Nfd7 {0-1 (28) Teychene,J (2001)-Manolache,M (2479) Val Thorens 2009}) 9. Qd3 {[%emt 0:00:30]} Qa5 {[%emt 0:00:30]} 10. O-O {[%emt 0:00:30]} Qa6 {[%emt 0:00:30]} 11. e4 {[%emt 0:00:30][%cal Re4d5]} dxc4 {[%emt 0:00:30]} 12. Qe3 {[%emt 0:00:30]} (12. Qd2 $14 {was preferrable.}) 12... O-O {[%emt 0:00:30]} 13. Bb2 {[%emt 0:00:30]} Rd8 {[%emt 0:00:30]} 14. h3 {[%emt 0:00:30] Prevents Ng4.} Qa5 {[%emt 0:00:30]} 15. Rfc1 {[%emt 0:00:30]} Na6 {[%emt 0:00:30]} 16. Nf3 {[%emt 0:00:30]} cxb3 {[%emt 0:00:30]} 17. axb3 {[%emt 0:00:30]} Qb6 {[%emt 0:00:30]} (17... Qh5 $11 {remains equal.} 18. Ng5 (18. g4 Nxg4 19. hxg4 Bxg4 $11) 18... Nc7) 18. Ba3 {[%emt 0:00:30]} (18. Na4 $1 $16 {[%cal Ra4b6]} Qb5 19. Bf1) 18... Re8 {[%emt 0:00:30]} (18... Ne8 $11) 19. Ng5 {[%emt 0:00:30][%mdl 1024] White has compensation.} (19. b4 $5 {[%cal Rg2f1]}) 19... Bh6 {[%emt 0:00:30]} (19... Qxb3 $2 20. Rcb1 Qc4 21. Bf1 $18 (21. Rxb7 Ng4 $16)) (19... Bxb3 $2 20. Rab1 $16) 20. f4 {[%emt 0:00:30]} Rad8 {[%emt 0:00:30]} (20... Bxb3 21. Rab1 e5 22. Ne2 (22. Na4 exf4 23. gxf4 Bxa4 $16) 22... exd4 23. Nxd4 $16 (23. Qxb3 d3+ 24. Qxb6 axb6 $14)) (20... Qxb3 $2 21. Rcb1 $18) 21. Nf3 {[%emt 0:00:30]} Bg7 {[%emt 0:00:30]} (21... Qxb3 $2 22. Rcb1 Qc2 23. Ne1 Qxb1 24. Rxb1 $18) 22. Rcb1 {[%emt 0:00:30]} Nh5 {[%emt 0:00:30]} (22... Bxb3 $2 23. Ne2 $18) 23. Ne2 {[%emt 0:00:30]} Bc8 {[%emt 0:00:30]} 24. g4 {[%emt 0:00:30]} Nf6 {[%emt 0:00:30]} 25. Rd1 {[%emt 0:00:30]} Be6 {[%emt 0:00:30]} 26. Rab1 {[%emt 0:00:30]} Nb4 {[%emt 0:00:30][%cal Ba6b4,Bb4d5,Bd5f4][%mdl 32]} 27. Rd2 {[%emt 0:00:30] Against Nc2} a5 {[%emt 0:00:30]} 28. Ng3 {[%emt 0:00:30]} Nfd5 {[%emt 0:00:30]} 29. exd5 {[%emt 0:00:30]} Nxd5 {[%emt 0:00:30]} 30. Qf2 {[%emt 0:00:30] Hoping for f5.} (30. Qe4 $2 Nc3 31. Qc2 Bxd4+ 32. Nxd4 Rxd4 $19) 30... Nxf4 {[%emt 0:00:30]} 31. Bf1 {[%emt 0:00:30]} Bd5 {[%emt 0:00:30]} 32. Ne5 {[%emt 0:00:30]} f6 {[%emt 0:00:30]} (32... Ne6 $14) 33. Nc4 $16 {[%emt 0:00:30]} (33. Qxf4 fxe5 34. Qe3 (34. Qg5 exd4 35. Bg2 Bf6 $17) 34... exd4 $17) 33... Qc7 {[%emt 0:00:30] [#]} 34. Bc5 $1 {[%emt 0:00:30]} Qb8 {[%emt 0:00:30]} 35. Re1 $36 {[%emt 0:00:30][%cal Bb1e1,Be1e4,Be4f4][%mdl 2080] White is in control.} e5 {[%emt 0:00:30] [#]} ({Black should play} 35... Bh6) 36. dxe5 $1 {[%emt 0:00:30]} (36. Nxa5 $6 b6 37. dxe5 bxc5 38. Qxf4 fxe5 $11) 36... fxe5 {[%emt 0:00:30]} 37. Ne4 {[%emt 0:00:30]} (37. Nxa5 $6 Rd7 $11) 37... Re6 {[%emt 0:00:30]} 38. Qh4 {[%emt 0:00:30]} h6 {[%emt 0:00:30] Against Ng5} 39. g5 {[%emt 0:00:30] The board is on fire. 0x0.00166e56042fdp-1022s more active pieces.} ({And not} 39. Nxa5 b6 40. Nxc6 (40. Nb7 $2 g5 $19) 40... Rxc6 $17) ({Better is} 39. Bb6 Rde8 40. g5 (40. Nxa5 Bf8 $16)) 39... Bxe4 {[%emt 0:00:30]} 40. Rxe4 {[%emt 0:00:30]} b5 {[%emt 0:00:30]} (40... Rxd2 $16 {might work better.} 41. Nxd2 Qd8) 41. gxh6 {[%emt 0:00:30]} Bf6 {[%emt 0:00:30] [#]} (41... g5 42. Qf2 (42. Qxg5 Rg6 $11) 42... Rxh6) 42. Qg4 $1 $18 {[%emt 0:00:30][%cal Oe4f4] Threatening mate with Rxf4!} Kh7 {[%emt 0:00:30] [#]} (42... Rxd2 43. Rxf4) 43. Rxf4 $1 {[%emt 0:00:30][%mdl 512] Weighted Error Value: White=0.13 (very precise) /Black=0.23 (precise)} 1-0

[Event "XLIV Barbera del Valles-A 2022"]
[Site "Barbera del Valles"]
[Date "2022.07.05"]
[Round "2.7"]
[White "Gourav Nigam"]
[Black "Bernado Lopez, Roger"]
[Result "1-0"]
[ECO "C65"]
[WhiteElo "1803"]
[BlackElo "2315"]
[Annotator "TA"]
[PlyCount "87"]
[EventDate "2022.07.04"]
[EventType "swiss"]
[EventCountry "ESP"]
[SourceTitle "playchess.com"]
[Source "ChessBase"]
[SourceQuality "1"]
[TimeControl "5400+30"]

{[%evp 9,87,11,24,0,0,-5,-12,-8,-4,-8,19,-16,18,0,12,19,24,26,16,16,22,27,66,21,65,47,47,45,43,46,205,207,199,208,202,194,248,212,341,325,489,457,530,516,821,769,884,875,876,867,907,732,866,914,1068,1101,1089,1021,1064,515,510,0,1099,1067,1017,929,908,740,702,674,1231,1251,2535,1633,29985,29969,29988,29989,29989,29990]} 1. e4 {[%emt 0:00:07]} e5 {[%emt 0:00:09]} 2. Nf3 {[%emt 0:00:09]} Nc6 {[%emt 0:00:14]} 3. Bb5 {[%emt 0:00:10]} Nf6 {[%emt 0:00:15]} 4. d3 {[%emt 0:00:25]} Bc5 {[%emt 0:00:11]} 5. c3 {[%emt 0:00:07]} d5 {[%emt 0:00:14]} 6. Qe2 {[%emt 0:04:18] C65: Ruy Lopez: Berlin Defence (3...Nf6), unusual lines and 4 0-0 Bc5.} O-O {[%emt 0:02:14]} 7. O-O {[%emt 0:00:16]} Re8 {[%emt 0:02:25]} 8. Bg5 {[%emt 0:05:39] The position is equal.} a6 {[%emt 0:11:09]} 9. Ba4 {[%emt 0:00:57]} b5 {[%emt 0:05:14]} 10. Bc2 {[%emt 0:07:29] [#]} Be6 $146 {[%emt 0:05:55]} ({Predecessor:} 10... d4 11. h3 Be6 12. Nbd2 Kh8 13. Nb3 Bb6 14. cxd4 Nxd4 15. Nbxd4 Bxd4 16. Nxd4 Qxd4 17. Bxf6 gxf6 {0-1 (25) Antz,W-Schaefer,A freechess.de 2016}) 11. Nbd2 {[%emt 0:06:41]} h6 {[%emt 0:04:36]} 12. Bh4 {[%emt 0:02:25]} Be7 {[%emt 0:04:17]} 13. Rfe1 {[%emt 0:07:40]} dxe4 {[%emt 0:03:12]} 14. dxe4 {[%emt 0:00:50]} Nd7 {[%emt 0:07:25]} 15. Bg3 {[%emt 0:01:24]} Bc5 {[%emt 0:04:43]} 16. Nf1 {[%emt 0:03:21]} Nf8 {[%emt 0:03:49]} 17. Ne3 {[%emt 0:06:18]} ({But not} 17. Nxe5 $2 Nxe5 18. Bxe5 Bc4 $19) (17. Red1 {looks sharper.} Qf6 18. b4 Bb6 19. Ne3) 17... Bxe3 {[%emt 0:02:46]} 18. Qxe3 {[%emt 0:01:40]} f6 {[%emt 0:00:26]} 19. Nh4 {[%emt 0:02:41]} g5 $2 {[%emt 0:05:45] [#] White leaves nothing to chance now.} ({Better is} 19... Qe7 $14) 20. Nf5 $18 {[%emt 0:01:40]} Bxf5 {[%emt 0:00:13]} 21. exf5 {[%emt 0:00:03]} Na5 {[%emt 0:02:12]} 22. Rad1 {[%emt 0:03:31]} Qb8 {[%emt 0:06:43]} (22... Qe7 {is a better defense.} 23. f4 gxf4 24. Bxf4 Nc4) 23. Be4 {[%emt 0:02:44] Black must now prevent Qe2.} Ra7 {[%emt 0:06:57]} (23... c6 $142 24. Qf3 Rd8 25. Bxc6 Rxd1 26. Rxd1 Ra7 27. Bd5+ Kg7) 24. f4 {[%emt 0:07:36][%cal Bf2f4,Bf4e5,Be5e6][%mdl 32]} c6 {[%emt 0:04:32]} (24... Nc4 {was called for.} 25. Bd5+ Kh8 26. Bxc4 gxf4 27. Bxf4 bxc4 28. Bxh6 c5 29. Qxc5 Rh7) 25. fxe5 {[%emt 0:00:43]} Nc4 {[%emt 0:00:06]} 26. e6 {[%emt 0:02:21]} Qb7 {[%emt 0:10:23]} (26... Nxe3 $142 27. Bxb8 Rxb8) 27. Qf3 {[%emt 0:03:51]} Rc8 {[%emt 0:00:53]} 28. b3 {[%emt 0:05:00]} Nb6 {[%emt 0:00:26]} 29. Rd6 {[%emt 0:00:16]} Qe7 {[%emt 0:01:20]} 30. Red1 {[%emt 0:01:36]} Rac7 {[%emt 0:02:18]} 31. Bxc6 {[%emt 0:04:17]} h5 {[%emt 0:01:31]} 32. Bf2 {[%emt 0:01:25][%cal Bg3f2,Bf2b6,Bb6d4][%mdl 32]} g4 {[%emt 0:00:19]} 33. Qe4 {[%emt 0:00:15]} Rb8 {[%emt 0:00:51]} 34. R6d4 {[%emt 0:03:21]} (34. Qf4 $142 a5 35. Bxb5) 34... Rbc8 {[%emt 0:00:46]} 35. Rd6 {[%emt 0:00:01]} (35. Bd5 $142) 35... Rb8 {[%emt 0:00:13]} 36. Qf4 {[%emt 0:02:11]} Rbc8 {[%emt 0:00:44]} 37. Bxb6 {[%emt 0:00:24]} Rxc6 {[%emt 0:00:09]} 38. Rxc6 {[%emt 0:00:25]} Rxc6 {[%emt 0:00:24]} 39. Bd4 {[%emt 0:00:09]} Nh7 {[%emt 0:00:27]} 40. Qh6 {[%emt 0:00:30] [#] And now Qg6+ would win.} b4 {[%emt 0:00:49]} 41. cxb4 {[%emt 0:01:20] Threatening mate with Bc5.} g3 {[%emt 0:00:59]} 42. hxg3 {[%emt 0:00:19] White mates.} Rc2 {[%emt 0:00:30]} 43. Bc5 {[%emt 0:00:51]} Rxc5 {[%emt 0:00:27]} 44. Qg6+ {[%emt 0:00:13] Weighted Error Value: White=0.46/Black=0.37} 1-0

[Event "XLIV Barbera del Valles-A 2022"]
[Site "Barbera del Valles"]
[Date "2022.07.05"]
[Round "2.8"]
[White "Pena Gomez, Manuel"]
[Black "Shah, Vishwa"]
[Result "1/2-1/2"]
[ECO "A37"]
[WhiteElo "2492"]
[BlackElo "1931"]
[Annotator "TA"]
[PlyCount "117"]
[EventDate "2022.07.04"]
[EventType "swiss"]
[EventCountry "ESP"]
[SourceTitle "playchess.com"]
[Source "ChessBase"]
[SourceQuality "1"]
[TimeControl "5400+30"]

{[%evp 14,117,24,18,23,33,29,29,31,0,0,13,13,24,20,7,33,40,40,27,41,35,81,81,83,61,78,81,65,72,86,72,65,68,73,42,48,48,47,47,47,6,48,48,48,48,87,87,87,77,87,87,87,51,59,54,149,143,170,144,256,251,273,262,262,255,254,256,239,227,246,17,42,18,45,0,0,0,0,-8,-8,-180,-185,-208,-159,-151,-119,-120,-121,-121,-121,-121,-122,-128,-8,-88,-8,-8,-8,-8,0,-8,-8,-8,0,0]} 1. g3 {[%emt 0:00:06]} c5 {[%emt 0:00:05]} 2. c4 {[%emt 0:00:10]} Nc6 {[%emt 0:00:07]} 3. Bg2 {[%emt 0:00:05]} g6 {[%emt 0:00:08]} 4. Nf3 {[%emt 0:00:24]} Bg7 {[%emt 0:00:11]} 5. Nc3 {[%emt 0:01:01]} e5 {[%emt 0:00:26]} 6. a3 {[%emt 0:00:16]} Nge7 $1 {[%emt 0:04:10] 6...Nge7 scores better than 6...a5.} 7. O-O {[%emt 0:00:30]} a5 {[%emt 0:01:58]} 8. Ne1 {[%emt 0:00:22]} d6 {[%emt 0:00:35] A37: Symmetrical English vs ...g6: 4 Bg2 Bg7 5 Nf3.} 9. Nc2 {[%emt 0:02:55]} O-O {[%emt 0:00:09]} 10. d3 {[%emt 0:00:16]} Be6 {[%emt 0:00:23] White has an edge.} 11. Bg5 {[%emt 0:00:23]} f6 {[%emt 0:02:03]} 12. Be3 {[%emt 0:01:28]} Rb8 {[%emt 0:08:47]} 13. Rb1 {[%emt 0:05:22]} Qd7 {[%emt 0:03:25]} 14. b4 {[%emt 0:02:50]} axb4 {[%emt 0:03:16]} 15. axb4 {[%emt 0:00:16]} b6 $1 {[%emt 0:01:46]} 16. Nd5 {[%emt 0:09:58]} Nd4 {[%emt 0:09:17] [#]} 17. Bxd4 $146 {[%emt 0:05:40]} (17. Nxe7+ {looks sharper.} Qxe7 18. Bxd4 exd4 19. Re1) ({Predecessor:} 17. Nxe7+ Qxe7 18. Bd2 f5 19. Ne3 f4 20. Nd5 Qd7 21. bxc5 bxc5 22. Rxb8 Rxb8 23. Bc3 fxg3 24. hxg3 {½-½ (42) Byron,A (2192)-Palliser,R (2445) England 2010}) 17... Bxd5 {[%emt 0:05:58]} (17... exd4 $14 {feels stronger.} 18. Nxe7+ Qxe7) 18. Bxd5+ $16 {[%emt 0:08:28]} Nxd5 {[%emt 0:00:07]} 19. Bxe5 {[%emt 0:00:08][%cal Ob4c5]} dxe5 {[%emt 0:07:10]} 20. cxd5 {[%emt 0:00:12]} Qxd5 {[%emt 0:00:05]} 21. Ne3 {[%emt 0:00:11]} Qe6 {[%emt 0:03:10]} 22. Qb3 {[%emt 0:01:46]} Qxb3 {[%emt 0:01:59]} 23. Rxb3 {[%emt 0:00:02]} Rfd8 {[%emt 0:11:13]} 24. Ra1 {[%emt 0:08:48]} cxb4 {[%emt 0:02:43]} 25. Rxb4 {[%emt 0:01:04]} Bf8 {[%emt 0:00:24]} 26. Rb5 {[%emt 0:01:43]} Bc5 {[%emt 0:02:48]} 27. Ra7 {[%emt 0:05:53]} Bxe3 {[%emt 0:05:02]} 28. fxe3 $11 {[%emt 0:00:12][%mdl 4096] Endgame KRR-KRR} h5 {[%emt 0:01:41]} 29. Kf2 {[%emt 0:01:05]} Kf8 {[%emt 0:04:25]} 30. Kf3 {[%emt 0:00:45] White is more active.} Rd6 {[%emt 0:04:35]} 31. h3 {[%emt 0:02:34]} Re8 {[%emt 0:02:27]} 32. Rb7 {[%emt 0:06:16]} Ree6 {[%emt 0:00:58]} 33. g4 {[%emt 0:06:40]} hxg4+ {[%emt 0:00:12]} 34. Kxg4 {[%emt 0:00:36]} f5+ {[%emt 0:08:29]} ({Black should play} 34... Rc6 $14) 35. Kg5 $16 {[%emt 0:00:34]} f4 {[%emt 0:00:56]} 36. e4 {[%emt 0:00:05]} ({Much less strong is} 36. exf4 $6 exf4 37. Rb4 (37. Kxf4 Rxe2 38. R5xb6 Rxd3 $11) 37... Re5+ 38. Kg4 (38. Kxf4 Rxe2 39. R4xb6 Rxd3 $11) 38... Rxe2 $14) 36... Ke8 {[%emt 0:01:15]} (36... Rc6 $16 37. Rb1 Rc2) 37. Rb3 {[%emt 0:01:42]} Kd8 {[%emt 0:04:05]} 38. h4 {[%emt 0:00:09]} Kc8 {[%emt 0:00:12]} 39. Rg7 {[%emt 0:00:05]} Rc6 {[%emt 0:00:37]} 40. Ra3 {[%emt 0:06:43][%cal Ra3a8] [#]} Kb8 {[%emt 0:00:07] Inhibits Ra8+.} 41. Rga7 {[%emt 0:04:13]} Kc8 {[%emt 0:01:32]} 42. Ra8+ $2 {[%emt 0:02:05]} (42. Rh7 $18 {[%cal Ra3a8]} Kb8 43. Raa7) 42... Kd7 {[%emt 0:00:05]} 43. Rg8 {[%emt 0:00:31]} b5 {[%emt 0:01:28][%cal Bb6b5,Bb5b4,Bb4b3,Bb3b2][%mdl 32]} 44. Ra5 {[%emt 0:08:40]} Rb6 $1 {[%emt 0:00:47]} 45. Ra1 {[%emt 0:04:39]} b4 {[%emt 0:00:23]} 46. Rb1 {[%emt 0:00:47]} b3 {[%emt 0:00:17]} 47. Ra8 $2 {[%emt 0:00:38]} (47. Rg7+ $11 Kc8 48. Rg8+ Kd7 49. Rg7+ Kc8 50. Rg8+ Kc7 51. Rg7+ Kc8) 47... Rec6 $19 {[%emt 0:00:38] [#] Threatens to win with ...b2.} ({Don't do} 47... b2 48. Ra2 $18) 48. Ra7+ {[%emt 0:02:17]} Kd8 {[%emt 0:00:33]} 49. d4 {[%emt 0:00:55]} exd4 {[%emt 0:00:17]} 50. Kxf4 {[%emt 0:00:06]} b2 {[%emt 0:00:08]} 51. Ra2 {[%emt 0:00:27]} Rc2 {[%emt 0:00:06]} 52. Ke5 {[%emt 0:00:20]} Rxe2 {[%emt 0:00:30] aiming for ...d3.} 53. Kxd4 {[%emt 0:00:19]} Rb4+ {[%emt 0:00:14]} ({Black should try} 53... Ke7 $17) 54. Kc5 {[%emt 0:01:49]} (54. Kc3 $11 {keeps the balance.} Rexe4 55. Rbxb2 Rbc4+ 56. Kd3) 54... Rbxe4 {[%emt 0:00:26]} (54... Rb7 $17) 55. Rbxb2 $11 {[%emt 0:00:07] The position is equal.} Rxb2 {[%emt 0:00:04]} 56. Rxb2 {[%emt 0:00:03]} Rxh4 {[%emt 0:00:06] And now ...Ke7 would win.} 57. Kd6 {[%emt 0:00:09][%cal Rb2b8]} Rd4+ {[%emt 0:00:34]} 58. Ke5 {[%emt 0:00:10]} Rd1 {[%emt 0:00:33]} 59. Rg2 {[%emt 0:00:12] White used his chance.  Weighted Error Value: White=0.22 (precise) /Black=0.19 (very precise)} 1/2-1/2

[Event "XLIV Barbera del Valles-A 2022"]
[Site "Barbera del Valles"]
[Date "2022.07.05"]
[Round "2.9"]
[White "Sudarshan Bhat"]
[Black "Narciso Dublan, Marc"]
[Result "0-1"]
[ECO "B01"]
[WhiteElo "2001"]
[BlackElo "2461"]
[Annotator "TA"]
[PlyCount "74"]
[EventDate "2022.07.04"]
[EventType "swiss"]
[EventCountry "ESP"]
[SourceTitle "playchess.com"]
[Source "ChessBase"]
[SourceQuality "1"]
[TimeControl "5400+30"]

{[%evp 9,74,11,7,16,24,0,0,0,-14,-25,-26,-32,-32,-32,-30,-28,-34,-38,-25,-27,-31,-27,-17,-36,-36,-66,-56,-53,-38,-82,-61,-60,-41,-79,-36,-135,-141,-131,-39,-43,18,-31,0,0,0,0,27,-43,-31,-31,-8,0,0,0,0,0,0,0,0,-243,-240,-720,-705,-821,-779,-1010,-989]} 1. e4 {[%emt 0:00:13]} d5 {[%emt 0:00:09]} 2. exd5 {[%emt 0:00:10]} Qxd5 {[%emt 0:00:02]} 3. Nf3 {[%emt 0:00:28]} Bg4 {[%emt 0:00:09]} 4. Be2 {[%emt 0:00:09]} Nc6 {[%emt 0:00:07]} 5. Nc3 {[%emt 0:08:16]} Qd7 {[%emt 0:00:08]} 6. O-O {[%emt 0:04:39] B01: Scandinavian Defence.} O-O-O {[%emt 0:00:27]} 7. Bb5 {[%emt 0:01:23]} Qf5 {[%emt 0:06:31]} 8. Bxc6 {[%emt 0:07:09] The position is equal.} bxc6 {[%emt 0:00:03] [#]} 9. Qe2 $146 {[%emt 0:01:12]} (9. d3 {keeps more tension.} e6 10. Ne4 Bxf3 11. gxf3 Ne7 12. Kh1) ({Predecessor:} 9. d3 Nf6 10. Re1 Rg8 11. Re3 g5 12. Bd2 Bg7 13. h3 Bh5 14. Qe1 Nd5 15. g4 Bxg4 16. Nxd5 Rxd5 17. hxg4 Qxg4+ {1-0 (32) Bisht,M (2226)-Stubbs,M (2189) ICCF email 2017}) 9... Bxf3 {[%emt 0:04:44]} 10. Qxf3 {[%emt 0:00:24]} Qxf3 {[%emt 0:00:12]} 11. gxf3 {[%emt 0:00:04]} Nh6 {[%emt 0:16:22][%cal Bg8h6,Bh6f5,Bf5h4,Bh4f3][%mdl 32]} 12. Ne4 {[%emt 0:05:51]} e6 {[%emt 0:01:41]} 13. d3 {[%emt 0:04:38]} Nf5 {[%emt 0:00:13]} 14. Be3 {[%emt 0:05:48]} a5 {[%emt 0:00:34]} 15. a4 {[%emt 0:07:38]} h6 {[%emt 0:15:51]} 16. Nd2 {[%emt 0:04:03]} Rd5 {[%emt 0:03:28]} 17. Nc4 {[%emt 0:07:20]} Nh4 {[%emt 0:02:44]} 18. f4 {[%emt 0:07:08]} g5 {[%emt 0:01:42][%cal Bg7g5,Bg5g4][%mdl 32]} 19. Kh1 {[%emt 0:07:31]} Bd6 {[%emt 0:02:25]} 20. Bd2 {[%emt 0:07:40]} Bxf4 {[%emt 0:02:11]} 21. Bxa5 {[%emt 0:02:42]} Nf3 {[%emt 0:00:59]} 22. Bc3 {[%emt 0:00:43] [#]} (22. Kg2 $1 $15 Nh4+ 23. Kh1) 22... g4 $1 $17 {[%emt 0:00:33][%cal Od5h5] ( -> ...Rh5!)} 23. Kg2 {[%emt 0:07:03] [#]} (23. Bxh8 Rh5) 23... Rg8 {[%emt 0:06:24] Black is more active.} ({Black should try} 23... Nh4+ $1 $17 24. Kh1 Rh5) 24. Rh1 $1 $15 {[%emt 0:03:08]} Kb7 {[%emt 0:03:01]} (24... Rh5 $15) 25. b4 {[%emt 0:02:24]} (25. h3 $11 {might be stronger.}) 25... e5 {[%emt 0:14:28]} 26. Na5+ {[%emt 0:01:31]} Kb6 {[%emt 0:00:07]} 27. Nc4+ {[%emt 0:00:18]} Ka7 {[%emt 0:00:12]} 28. b5 {[%emt 0:03:57]} (28. h3 $11) 28... e4 {[%emt 0:04:22]} 29. Na5 $1 {[%emt 0:00:42]} ({Not} 29. dxe4 $2 Rc5 30. Na5 Nh4+ 31. Kg1 Rxc3 $19) 29... Re8 {[%emt 0:08:55] Dancing on a razor blade.} ({But not} 29... exd3 30. Nxc6+ Kb7 31. Ne7 Nh4+ 32. Kf1 $14) 30. Nxc6+ {[%emt 0:00:14]} Ka8 {[%emt 0:00:08] Threatens to win with ...e3.} 31. dxe4 {[%emt 0:00:50]} Nh4+ $1 {[%emt 0:00:32]} 32. Kf1 {[%emt 0:00:19]} Rxe4 {[%emt 0:00:13]} 33. Re1 {[%emt 0:00:46]} Rxe1+ {[%emt 0:05:17]} (33... Rxa4 $2 {gets mated.} 34. Re8+) 34. Kxe1 $2 {[%emt 0:00:01]} (34. Bxe1 $11 {and White stays safe.} Ng6 35. h4) 34... Rc5 $19 {[%emt 0:00:34]} 35. Bb2 {[%emt 0:01:06]} (35. h3) 35... Rxc2 {[%emt 0:00:29] Black is clearly winning.} 36. Ba3 {[%emt 0:00:29]} Ra2 {[%emt 0:00:39]} 37. Bc1 {[%emt 0:00:30]} Bxc1 {[%emt 0:00:22] Weighted Error Value: White=0.44/Black=0.12 (very precise)} 0-1